Cogmind - Beta 16 @@@ ROGUE MODE // 2025.10.23 @ 16:17:08 Player: UberDoot Result: Destroyed by G-67 Veteran with Plasma Rifle Performance ------------- Evolutions (7) 3500 Regions Visited (12) 2400 Robots Destroyed (143) 715 Value Destroyed (6816) 6816 Prototype IDs (54) 1080 Alien Tech Used (5) 1000 Bonus (3550) 3550 TOTAL SCORE: 19061 Bonus ------- High Alert Combat Kills 43 Follower Combat Kills 517 Registered with UFD 300 Met Optimus in HQ 500 Met Warlord at Base 500 MAIN.C Attacked Warlord 500 Warlord Defense Kills 1458 Friendly Fire -268 Cogmind --------- Core Integrity 0/1300 Matter 300/300 Energy 83/100 System Corruption 30% Temperature Cool (0) Movement Core (50) Location -3/Quarantine Parts ------- > --- POWER (2) -------- (None) > --- PROPULSION (6) --- (None) > --- UTILITY (8) ------ Experimental Signal Interpreter Advanced Targeting Computer > --- WEAPON (5) ------- (None) > --- INVENTORY (5) ---- Impulse Thruster Vortex Driver (30) Mini Smartbomb Launcher Improved Plasma Cutter Peak State ------------ > --- POWER ------------ Vortex Chain Reactor > --- PROPULSION ------- Gyrokinetic Inverter Improved Antigrav System Improved Antigrav System Improved Gyrokinetic Inverter Cooled Antigrav System Combat Antigrav System > --- UTILITY ---------- Large Storage Unit Structural Scanner Experimental Signal Interpreter Advanced Targeting Computer Improved Transmission Jammer Experimental Cloaking Device Makeshift Hacking Suite System Mapper > --- WEAPON ----------- Core Cannon KE Penetrator Enhanced Force Lance > --- INVENTORY -------- Micro Antimatter Reactor Improved Gyrokinetic Inverter Matter Compressor Advanced Gravity Neutralizer Phase Armor Graphene Brace High-powered Tractor Beam Subatomic Replicator HERF Cannon Vortex Driver Mini Smartbomb Launcher Improved Plasma Cutter Gravity Flail [Rating: 159] Favorites ----------- Power Subdweller Power Source Engine Subdweller Power Source Power Core Reinforced Fission Core Reactor Light Antimatter Reactor Propulsion Armored Medium Treads Treads Armored Medium Treads Leg Carbon-fiber Leg Wheel Subdweller Monowheel Hover Unit Improved Gyrokinetic Inverter Flight Unit VTOL Module Utility Experimental Signal Interpreter Device Structural Scanner Storage Large Storage Unit Processor Experimental Signal Interpreter Hackware Makeshift Hacking Suite Protection Improved Medium Armor Plating Artifact Phase Armor Weapon Subdweller Machine Gun Energy Gun High-powered Shock Rifle Energy Cannon Subdweller Beam Cannon Ballistic Gun Subdweller Machine Gun Ballistic Cannon Heavy Mass Driver Launcher Mini Smartbomb Launcher Special Weapon Improved Plasma Cutter Impact Weapon Powered Hammer Slashing Weapon Sigix Broadsword Piercing Weapon Kinetic Spear Build | -11 -10 -10 -7 -5 -5 -4 -4 -4 -4 -3 -3 -3 ------- Run | Yrd Mat Sub Scr Fac Ext Fac Upp Upp War Pro Res Qua Slots Evolved 14 | . . . . 10 . 2 . . . . 2 . Power 1 | . . . . 1 . . . . . . . . Propulsion 4 | . . . . 3 . . . . . . 1 . Utility 6 | . . . . 5 . 1 . . . . . . Weapon 3 | . . . . 1 . 1 . . . . 1 . Parts Attached 245 | 10 3 13 9 49 34 60 8 6 18 6 14 15 Power 31 | 1 1 1 3 3 5 6 1 1 4 . 2 3 Engine 9 | 1 1 1 2 . 3 . . 1 . . . . Core 7 | . . . 1 3 1 1 1 . . . . . Reactor 15 | . . . . . 1 5 . . 4 . 2 3 Propulsion 80 | 4 . 2 3 16 18 15 1 3 5 . 7 6 Treads 14 | 2 . . 1 1 2 5 1 2 . . . . Leg 19 | 2 . . . . 12 5 . . . . . . Wheel 8 | . . 2 2 . . 4 . . . . . . Hover 21 | . . . . 2 . 1 . 1 5 . 6 6 Flight 18 | . . . . 13 4 . . . . . 1 . Utility 68 | 2 1 2 2 18 5 20 4 2 3 3 2 4 Device 35 | 1 . 1 1 11 1 13 1 1 2 2 . 1 Storage 8 | 1 1 1 1 . . 1 1 . . . 1 1 Processor 13 | . . . . 5 1 4 1 . 1 . . 1 Hackware 6 | . . . . 2 1 1 . 1 . . 1 . Protection 5 | . . . . . 2 1 1 . . 1 . . Artifact 1 | . . . . . . . . . . . . 1 Weapon 66 | 3 1 8 1 12 6 19 2 . 6 3 3 2 Energy Gun 15 | 3 1 3 . . . 8 . . . . . . Energy Cannon 8 | . . 1 . . . 2 1 . 2 . 1 1 Ballistic Gun 30 | . . 3 1 7 5 7 1 . 3 3 . . Ballistic Cannon 2 | . . . . 1 . 1 . . . . . . Launcher 2 | . . 1 . 1 . . . . . . . . Special Weapon 2 | . . . . 1 1 . . . . . . . Impact Weapon 4 | . . . . 1 . 1 . . 1 . 1 . Slashing Weapon 1 | . . . . . . . . . . . . 1 Piercing Weapon 2 | . . . . 1 . . . . . . 1 . Special Melee Weapon . | . . . . . . . . . . . . . Unidentified Prototypes 21 | . . . . 2 . 5 . . 6 1 1 6 Corrupted Parts 6 | . . . . . . 5 . . 1 . . . System Corruption 20 | . . . . . . 16 . . 4 . . . Parts Lost 101 | . . 1 . 26 8 27 3 . . . 15 21 Power 15 | . . . . . 2 4 1 . . . 4 4 Propulsion 39 | . . . . 11 4 10 1 . . . 6 7 Utility 25 | . . . . 9 2 4 1 . . . 2 7 Weapon 22 | . . 1 . 6 . 9 . . . . 3 3 Highest Loss Streak 14 | . . 1 . 14 2 11 2 . . . 5 13 To Critical Strikes . | . . . . . . . . . . . . . Average Backups 14 | 5 7 13 24 5 4 9 14 14 14 13 13 12 Power . | . . . 1 . . . . . . 1 1 . Propulsion 2 | 2 2 2 3 . . 1 2 2 2 1 . . Utility 4 | . 3 4 8 1 . 3 4 5 5 5 6 4 Weapon 5 | 1 2 6 9 2 2 2 6 6 5 5 5 4 Tool/Special . | . . . . . . . . . . . . . Unused Backups 44 | 2 1 4 16 4 . 8 1 . 1 1 . 6 Power 2 | . 1 . . . . 1 . . . . . . Propulsion 5 | 2 . 1 . . . 1 . . . . . 1 Utility 17 | . . 2 8 2 . 2 1 . . 1 . 1 Weapon 16 | . . 1 8 1 . 3 . . 1 . . 2 Tool/Special 4 | . . . . 1 . 1 . . . . . 2 Average Slot Usage (%) 89 | . 100 96 84 61 87 91 96 93 99 99 83 65 Engine 7 | . 14 14 12 . 2 . . . 3 . . . Core 1 | . . . . 4 2 3 7 5 3 . . . Reactor 1 | . . . . . 3 5 . . 1 10 6 4 Treads 13 | . . 24 6 1 1 11 24 24 18 . . . Leg 2 | . 28 . . . 20 8 . . . . . . Wheel 5 | . . 3 20 . . 1 . . . . . . Hover 3 | . . . . 1 1 1 1 . 7 26 24 25 Device 10 | . 14 10 2 9 4 16 22 19 20 20 10 6 Storage 8 | . 14 14 13 . . 2 5 5 5 5 4 3 Processor 5 | . . . . 9 11 10 11 14 10 10 9 9 Hackware 3 | . . . . 8 11 9 . . 5 5 8 5 Energy Gun 2 | . 28 4 . . . 7 . . . . . . Energy Cannon 5 | . . 9 13 . . . . . . . . . Ballistic Gun 12 | . . 13 13 6 12 6 20 20 17 14 11 2 Peak Build Rating 159 | 8 8 18 33 79 75 107 105 103 129 126 131 159 Average Rating 53 | 5 7 12 19 53 61 91 100 98 105 122 117 104 On Entrance 63 | . 8 8 18 33 48 64 99 94 101 123 119 105 Avg Prop Armor Cover (%) 11 | . . 11 10 12 14 16 . 2 8 . 3 . Naked Turns . | . . . . . . . . . . . . . Heaviest Build 217 | 11 19 217 217 47 52 81 84 89 89 78 77 76 Greatest Support 137 | 40 20 40 32 46 85 109 137 137 137 79 90 76 Greatest Overweight (x) 18 | . . 10 18 3 12 4 . . 1 . 1 . Average Overweight (x) 1 | . . 2 5 . . . . . . . . . Largest Inventory Capacity 35 | 8 10 35 35 15 5 15 15 15 15 15 15 15 Average Capacity 16 | 7 8 16 29 6 5 9 15 15 15 15 15 13 Most Carried 35 | 8 8 34 35 14 5 15 15 15 15 15 15 15 Average Carried 15 | 5 7 14 28 5 4 9 14 14 14 14 14 13 Final Capacity 35 | 8 10 35 15 5 5 15 15 15 15 15 15 5 Final Carried 34 | 8 8 34 15 5 5 14 14 15 15 15 15 4 Class Distribution -------------------- 21% | Hauler-Mutant 19% | Scavenger-Gunner 18% | Scavenger-Mutant 14% | Mutant 10% | Scavenger-Skirmisher 6% | Scavenger-Tank 5% | Hacker-Mutant Dominant Class ---------------- Mutant | -10/Materials Scavenger-Mutant | -10/Subcaves Hauler-Mutant | -7/Scraptown Hacker-Mutant | -5/Factory Scavenger-Tank | -5/Extension Scavenger-Gunner | -4/Factory Scavenger-Skirmisher | -4/Upper Caves Scavenger-Tank | -4/Upper Caves Scavenger-Gunner | -4/Warlord Scavenger-Gunner | -3/Proximity Caves Scavenger-Gunner | -3/Research Scavenger-Mutant | -3/Quarantine Resources | -11 -10 -10 -7 -5 -5 -4 -4 -4 -4 -3 -3 -3 ----------- Run | Yrd Mat Sub Scr Fac Ext Fac Upp Upp War Pro Res Qua Matter Collected 7777 | 300 30 331 110 848 1202 1535 436 581 1204 602 252 346 Remotely 859 | . . . . . . 117 103 . 639 . . . Salvage Created 5948 | 212 . 326 . 754 832 1715 102 221 501 413 613 259 Parts 319 | 16 . 17 . 51 33 95 5 3 14 18 44 23 Haulers Intercepted 4 | . . . . . . 2 . . . 1 1 . Recyclers Shooed 5 | . . . . 1 . 4 . . . . . . Parts Field Recycled . | . . . . . . . . . . . . . Retrieved Matter . | . . . . . . . . . . . . . Parts Self-Destructed 36 | . . 16 . . . . 3 3 . 14 . . Prevented . | . . . . . . . . . . . . . Parts Restored . | . . . . . . . . . . . . . Kills | -11 -10 -10 -7 -5 -5 -4 -4 -4 -4 -3 -3 -3 ------- Run | Yrd Mat Sub Scr Fac Ext Fac Upp Upp War Pro Res Qua Combat Hostiles Destroyed 114 | . . 10 . 18 12 26 1 6 12 15 9 5 Melee 12 | . . . . 2 2 1 . . . . 3 4 Guns 40 | . . 4 . 10 9 10 . 2 2 2 1 . Cannons 11 | . . 2 . 4 . 5 . . . . . . AOE 43 | . . 3 . 2 . 5 . 4 10 13 5 1 Classes Destroyed 22 | 2 . 4 . 6 1 3 1 . 4 . . 1 Worker 3 | . . . . 2 . . . . . . 1 . Builder 8 | . . . . 1 1 5 . . . . 1 . Tunneler 6 | 6 . . . . . . . . . . . . Hauler 4 | . . . . . . 2 . . . 1 1 . Recycler 2 | 1 . . . . . 1 . . . . . . Operator 2 | . . . . 1 . . . . . . 1 . Drone 1 | . . . . . . . . . . . . 1 Watcher 4 | . . . . 2 . . . . . . 1 1 Swarmer 33 | . . 3 . 10 3 . . 1 1 10 4 1 Saboteur 2 | . . . . . . . . . 2 . . . Grunt 30 | . . 1 . 2 6 7 . 4 5 5 . . Protector 1 | . . . . . . . . . 1 . . . Sentry 6 | . . . . 1 3 . 1 1 . . . . Specialist 1 | . . . . . . . . . 1 . . . Hunter 10 | . . . . . . 8 . . 1 . 1 . Programmer 22 | . . . . 5 . 10 . . . . 4 3 Heavy 1 | . . . . . . 1 . . . . . . Executioner 1 | . . . . . . . . . 1 . . . Artisan 1 | . . 1 . . . . . . . . . . Subdweller 6 | . . 6 . . . . . . . . . . Decomposer 1 | . . . . . . . . . . 1 . . Samaritan 1 | . . . . . . . 1 . . . . . Butcher 1 | . . . . . 1 . . . . . . . Best Kill Streak 6 | 3 . 3 . 5 3 6 1 3 5 6 6 3 Combat Bots Only 5 | . . 3 . 5 3 4 1 3 5 5 4 3 Max Kills in Single Turn 4 | 1 . 2 . 2 2 3 1 1 2 4 3 1 Gunslinging 1 | . . 1 . . . . . . . . . . Exploded 4 | . . 2 . 1 . 2 . 1 2 4 3 1 Melee 1 | . . . . 1 1 1 . . . . 1 1 Uniques/NPCs Destroyed . | . . . . . . . . . . . . . Combat | -11 -10 -10 -7 -5 -5 -4 -4 -4 -4 -3 -3 -3 -------- Run | Yrd Mat Sub Scr Fac Ext Fac Upp Upp War Pro Res Qua Hostile Shots Fired 1216 | . 2 54 . 179 107 400 33 25 26 38 194 158 Missed 407 | . 2 22 . 76 23 122 11 5 10 19 68 49 Deflected 2 | . . . . . . 2 . . . . . . Hits 809 | . . 32 . 103 84 278 22 20 16 19 126 109 Projectile 809 | . . 32 . 103 84 278 22 20 16 19 126 109 AOE 3 | . . . . 1 . . . . 2 . . . Critical Strikes 44 | . . . . 7 10 8 . 3 . 1 8 7 Actively Blocked 10 | . . . . . . 7 . 3 . . . . Part Disruptions 4 | . . . . 1 . . . 3 . . . . Damage Taken 15741 | . . 375 . 1960 1823 5187 404 296 247 324 2266 2859 Core 3030 | . . 97 . 636 305 603 . 7 55 8 384 935 Absorbed by Shields 477 | . . . . . . . . 188 244 45 . . Ignored by Resistances 46 | . . . . . . . 6 . . . 40 . Regen/Repaired (Parts) 1500 | . . . . . . 1329 . . 97 . . 74 Core Remaining (%) 51 | 100 . . 61 . 5 . . . . 41 . . Volleys Fired 344 | 12 . 49 . 76 42 95 3 11 24 18 14 . Largest 4 | 2 . 2 . 4 3 3 4 4 3 3 4 . Hottest 185 | 80 . 110 . 102 89 185 180 125 100 103 140 . Shots Fired 689 | 24 . 89 . 108 108 219 12 30 39 27 33 . Gun 557 | 24 . 56 . 78 108 185 11 25 25 18 27 . Cannon 85 | . . 27 . 28 . 26 1 . . . 3 . Launcher 47 | . . 6 . 2 . 8 . 5 14 9 3 . Special . | . . . . . . . . . . . . . Kinetic 457 | . . 33 . 99 108 111 11 25 25 18 27 . Thermal 146 | 24 . 50 . 7 . 64 1 . . . . . Explosive 47 | . . 6 . 2 . 8 . 5 14 9 3 . Electromagnetic 39 | . . . . . . 36 . . . . 3 . Robot Hit Streak 21 | 7 . 9 . 10 20 21 3 6 20 5 8 . Robot Miss Streak 6 | 2 . 1 . 4 4 6 2 4 2 6 1 . Penetration Max 2 | . . . . 1 2 1 . . 2 . . . Secondary Targets 4 | . . 2 . . 1 1 . . . . . . Max Gunslinging Chain 1 | . . 1 . . 1 1 . . . . . . Shots Hit Robots 446 | 16 . 35 . 59 82 154 5 16 23 5 33 18 Core Hits 288 | 8 . 13 . 40 35 65 3 12 56 33 18 5 Critical Kills 15 | . . 2 . . 8 3 1 1 . . . . Critical Parts Destroyed 16 | . . . . 1 9 2 . . . . 2 2 Critical Strikes 44 | . . 3 . 5 19 9 1 1 . . 3 3 Burn 4 | . . 1 . . . 3 . . . . . . Meltdown 2 | . . 1 . . . . 1 . . . . . Destroy 27 | . . 1 . 1 18 5 . 1 . . 1 . Blast 4 | . . . . 3 . 1 . . . . . . Smash 3 | . . . . . . . . . . . 1 2 Impale 4 | . . . . 1 1 . . . . . 1 1 Melee Attacks 153 | . . . . 21 15 39 . . 2 . 33 43 Impact 44 | . . . . 8 2 15 . . 2 . 12 5 Slashing 5 | . . . . . . . . . . . . 5 Piercing 104 | . . . . 13 13 24 . . . . 21 33 Sneak Attacks 6 | . . . . 1 3 1 . . . . . 1 Combat Hostiles 2 | . . . . . 1 . . . . . . 1 Follow-up Attacks 3 | . . . . 1 2 . . . . . . . Damage Inflicted 19034 | 175 . 827 . 1959 1265 5266 108 1018 3507 2332 1692 885 Guns 6544 | 175 . 522 . 954 743 2645 73 219 532 131 550 . Cannons 1801 | . . 160 . 482 . 1007 35 . . . 117 . Explosions 8385 | . . 145 . 210 . 1484 . 799 2975 2201 571 . Melee 2301 | . . . . 313 522 130 . . . . 454 882 Ramming 3 | . . . . . . . . . . . . 3 Kinetic 5984 | . . 244 . 1436 743 2056 73 219 532 131 550 . Thermal 2112 | 175 . 438 . . . 1302 35 . . . 162 . Explosive 8080 | . . 145 . 210 . 1341 . 799 2975 2201 409 . Electromagnetic 554 | . . . . . . 437 . . . . 117 . Impact 466 | . . . . 24 74 . . . . . 128 240 Slashing 63 | . . . . . . . . . . . . 63 Piercing 1772 | . . . . 289 448 130 . . . . 326 579 Highest Corruption 30 | . . . . 10 10 30 30 30 30 4 4 30 Average Corruption 14 | . . . . 7 10 12 30 30 14 4 1 8 Corruption Purged . | . . . . . . . . . . . . . Corruption Blocked . | . . . . . . . . . . . . . Effects 268 | . . . . 15 43 93 54 32 5 11 2 13 Message Errors 62 | . . . . 4 6 31 12 4 . . 1 4 Matter Fused 63 | . . . . 3 11 20 12 12 1 2 . 2 Heat Flow Errors 30 | . . . . 4 4 10 6 4 . 2 . . Energy Discharges 32 | . . . . 1 6 6 11 5 1 . . 2 Parts Rejected 6 | . . . . . . 4 . . . 1 1 . Parts Fused 2 | . . . . . . . 1 . . 1 . . Data Loss (minor) 25 | . . . . 1 6 7 5 1 1 2 . 2 Data Loss (major) 19 | . . . . 1 3 7 3 3 . . . 2 Misfires 9 | . . . . . 3 4 . 1 . 1 . . Alerts 8 | . . . . 1 1 2 2 . . 1 . 1 Misdirections 4 | . . . . . . . 2 2 . . . . Weapon Failures 8 | . . . . . 3 2 . . 2 1 . . Overload Shots . | . . . . . . . . . . . . . Overflow Damage 1028 | . . 5 . 86 31 290 . 13 40 36 149 378 Projectiles 167 | . . . . 8 . 159 . . . . . . Explosions 282 | . . 5 . 5 . 131 . 13 40 36 52 . Melee 579 | . . . . 73 31 . . . . . 97 378 Knockbacks 11 | . . . . 4 . 7 . . . . . . Impact . | . . . . . . . . . . . . . Kinetic 11 | . . . . 4 . 7 . . . . . . Secondary . | . . . . . . . . . . . . . Self-Inflicted Damage 153 | . . . . 70 . 82 . . . . . 1 Shots 4 | . . . . 3 . 1 . . . . . . Rammed 1 | . . . . . . . . . . . . 1 Targets Rammed 1 | . . . . . . . . . . . . 1 Kicked . | . . . . . . . . . . . . . Crushed . | . . . . . . . . . . . . . Highest Temperature 451 | 90 . . . 224 297 451 264 343 80 191 115 38 Average Temperature 86 | 33 . . . 79 91 122 109 114 19 54 33 10 Received Heat Transfer 1071 | . . 114 . 105 264 339 27 38 . 28 144 12 Effects 9 | . . . . . . 9 . . . . . . Shutdowns 1 | . . . . . . 1 . . . . . . Energy Bleed 3 | . . . . . . 3 . . . . . . Interference 5 | . . . . . . 5 . . . . . . Siege Activations . | . . . . . . . . . . . . . Martial Activations . | . . . . . . . . . . . . . Shielding Activations 1 | . . . . . . 1 . . . . . . Total Turns 15 | . . . . . . 15 . . . . . . Longest Duration 15 | . . . . . . 15 . . . . . . Robots Disrupted . | . . . . . . . . . . . . . Combat Hostiles . | . . . . . . . . . . . . . Robots Corrupted 3 | . . . . . 1 2 . . . . . . Combat Hostiles 3 | . . . . . 1 2 . . . . . . Parts Fried 3 | . . . . . 1 1 . . . . 1 . Impact Corruptions 7 | . . . . . 1 . . . . . 2 4 Robots Melted 4 | . . 1 . . . 2 1 . . . . . Combat Hostiles 4 | . . 1 . . . 2 1 . . . . . Parts Melted 24 | 1 . 7 . . . 11 1 . 3 . 1 . Heat Transferred 3826 | 400 . 805 . . . 2434 37 . . . 150 . Parts Sabotaged . | . . . . . . . . . . . . . Parts Stolen . | . . . . . . . . . . . . . Parts Stripped . | . . . . . . . . . . . . . Power Chain Reactions 2 | . . . . . . 1 . . . . 1 . Alert | -11 -10 -10 -7 -5 -5 -4 -4 -4 -4 -3 -3 -3 ------- Run | Yrd Mat Sub Scr Fac Ext Fac Upp Upp War Pro Res Qua Maximum Alert Level 2 | . . . . 2 1 1 . . . . 2 1 Low Security (%) 67 | 100 100 . . 70 96 58 . . . . 19 66 Level 1 31 | . . . . 26 3 41 . . . . 78 33 Level 2 . | . . . . 3 . . . . . . 1 . Level 3 . | . . . . . . . . . . . . . Level 4 . | . . . . . . . . . . . . . Level 5 . | . . . . . . . . . . . . . High Security . | . . . . . . . . . . . . . Max Security . | . . . . . . . . . . . . . Peak Influence 429 | 10 30 . . 429 210 281 . . . . 400 232 Initial 210 | . . . . . 82 99 . . . . 101 210 Average 139 | 1 5 . . 160 86 155 . . . . 294 91 Influence Increases 4860 | 35 36 245 . 885 754 1142 50 130 311 360 662 250 Destroy 0b10 Robot/C 2340 | . . 80 . 360 420 560 20 120 220 300 180 80 Destroy 0b10 Robot/NC 190 | 35 . . . 25 45 40 . . 5 5 25 10 Destroy Leader 328 | . . . . 64 44 144 . 10 . 20 24 22 Allied During Kill 154 | . . . . . 126 12 . . 11 5 . . Successful Hack 107 | . 6 . . 12 12 13 . . . . 42 22 Select Force Hacks 30 | . 30 . . . . . . . . . . . Disable Machine 270 | . . . . 30 30 90 . . . . 45 75 Destroy Structure 496 | . . . . 124 32 238 . . . . 76 26 Partial Spotted 105 | . . . . 15 . 15 . . . . 75 . Lose Combat Pursuer 840 | . . 165 . 255 45 30 30 . 75 30 195 15 Influence Decreases 4860 | 35 36 195 50 716 719 1075 317 134 54 467 437 625 Entered New Map 816 | . . . 50 . 87 105 101 2 . 257 49 165 Time Decay 2706 | 35 36 195 . 306 452 668 196 132 54 190 238 204 Lost Part 820 | . . . . 260 80 242 20 . . . 150 68 Lost Ally 180 | . . . . . 100 60 . . . 20 . . Purge Threat 338 | . . . . 150 . . . . . . . 188 Squads Dispatched 31 | . 1 . . 9 4 9 . . . . 6 2 Investigation 12 | . 1 . . 4 2 2 . . . . 3 . Extermination 12 | . . . . 3 . 5 . . . . 2 2 Reinforcement 7 | . . . . 2 2 2 . . . . 1 . Assault . | . . . . . . . . . . . . . Garrison . | . . . . . . . . . . . . . Intercept . | . . . . . . . . . . . . . Searches Triggered . | . . . . . . . . . . . . . Construction Impeded 2 | . . . . . 1 1 . . . . . . Haulers Reinforced 1 | . . . . . . . . . . . 1 . Active Scanning Responses . | . . . . . . . . . . . . . Cargo Convoy Interrupts . | . . . . . . . . . . . . . Stealth | -11 -10 -10 -7 -5 -5 -4 -4 -4 -4 -3 -3 -3 --------- Run | Yrd Mat Sub Scr Fac Ext Fac Upp Upp War Pro Res Qua Distress Signals 9 | . 1 . . 2 3 . . . . . 2 1 Communications Jammed 18 | . . . . . . 17 . . . . 1 . Distress Signals 17 | . . . . . . 17 . . . . . . Times Spotted 237 | . 5 21 . 46 28 33 10 6 31 14 25 18 Peak Tracking Total 12 | . 3 5 . 10 5 5 9 3 12 5 11 8 Tactical Retreats 27 | . . 4 . 9 3 2 1 . 2 1 4 1 Traps | -11 -10 -10 -7 -5 -5 -4 -4 -4 -4 -3 -3 -3 ------- Run | Yrd Mat Sub Scr Fac Ext Fac Upp Upp War Pro Res Qua Traps Triggered 5 | . . . . . 3 . . 1 . . 1 . Indirectly . | . . . . . . . . . . . . . Trap Hack Attempts . | . . . . . . . . . . . . . Triggered . | . . . . . . . . . . . . . Disarmed . | . . . . . . . . . . . . . Reprogrammed . | . . . . . . . . . . . . . Reused . | . . . . . . . . . . . . . Traps Extracted . | . . . . . . . . . . . . . Installed . | . . . . . . . . . . . . . Triggered . | . . . . . . . . . . . . . Machines | -11 -10 -10 -7 -5 -5 -4 -4 -4 -4 -3 -3 -3 ---------- Run | Yrd Mat Sub Scr Fac Ext Fac Upp Upp War Pro Res Qua Machines Disabled 20 | . . 1 . 2 2 6 . . 1 . 3 5 Max in Single Turn 1 | . . 1 . 1 1 1 . . 1 . 1 1 Garrison Access 1 | . . . . . . . . . . . 1 . Machines Repaired . | . . . . . . . . . . . . . Machines Dismantled 3 | . . . . . 2 . . . 1 . . . Machines Sabotaged . | . . . . . . . . . . . . . Overloaded Fab Kills . | . . . . . . . . . . . . . Hacking | -11 -10 -10 -7 -5 -5 -4 -4 -4 -4 -3 -3 -3 --------- Run | Yrd Mat Sub Scr Fac Ext Fac Upp Upp War Pro Res Qua Machines Accessed 56 | . 3 4 4 12 6 6 . 1 2 1 9 8 Terminals 30 | . 2 . . 8 6 2 . . . 1 4 7 Fabricators 2 | . . . . . . 1 . . . . 1 . Repair Stations 3 | . . . . . . 1 . . . . 1 1 Recycling Units 8 | . 1 . . 4 . 2 . . . . 1 . Scanalyzers 1 | . . . . . . . . . . . 1 . Garrison Access 1 | . . . . . . . . . . . 1 . Total Hacks 177 | . 6 14 23 28 18 26 . 1 7 1 31 22 Successful 117 | . 4 14 23 11 8 17 . 1 7 1 21 10 Failed 60 | . 2 . . 17 10 9 . . . . 10 12 Catastrophic 3 | . . . . 2 . . . . . . . 1 Database Lockouts . | . . . . . . . . . . . . . Manual 52 | . 5 . . 18 7 4 . . . . 8 10 Terminals 77 | . 5 . . 18 18 6 . . . 1 10 19 Fabricators 4 | . . . . . . 1 . . . . 3 . Repair Stations 18 | . . . . . . 12 . . . . 3 3 Recycling Units 21 | . 1 . . 10 . 7 . . . . 3 . Scanalyzers 10 | . . . . . . . . . . . 10 . Garrison Access 2 | . . . . . . . . . . . 2 . Terminal Hacks 75 | . 2 14 23 4 7 3 . 1 7 1 5 8 Record 38 | . . 12 22 . . . . . . 1 . 3 Part Schematic 4 | . 1 . . . 2 . . . . . 1 . Prototype ID Bank 7 | . . . . . . . . . 6 . 1 . Open Door 7 | . . 1 . 1 2 . . 1 1 . 1 . Branch Access Points 1 | . . . . . . . . . . . 1 . Machine Index 2 | . . . . . . . . . . . 1 1 Terminal Index 2 | . . . . 1 . 1 . . . . . . Recycling Unit Index 2 | . . . . 1 . 1 . . . . . . Alert Level 3 | . . . . . 1 1 . . . . . 1 Unreport Threat 3 | . . . . 1 . . . . . . . 2 Locate Traps 2 | . . . . . 2 . . . . . . . Hauler Manifests 2 | . 1 . . . . . . . . . . 1 Proto ID Catalog 2 | . . 1 1 . . . . . . . . . Fabricator Hacks 1 | . . . . . . . . . . . 1 . Load Schematic 1 | . . . . . . . . . . . 1 . Repair Station Hacks 12 | . . . . . . 10 . . . . 1 1 Scan Component 7 | . . . . . . 5 . . . . 1 1 Repair 5 | . . . . . . 5 . . . . . . Recycling Unit Hacks 5 | . . . . 2 . 2 . . . . 1 . Retrieve Components 5 | . . . . 2 . 2 . . . . 1 . Scanalyzer 9 | . . . . . . . . . . . 9 . Insert Component 4 | . . . . . . . . . . . 4 . Analyze 4 | . . . . . . . . . . . 4 . Retrieve Study 1 | . . . . . . . . . . . 1 . Garrison Access Hacks 1 | . . . . . . . . . . . 1 . Seal Access 1 | . . . . . . . . . . . 1 . Unauthorized Hacks 14 | . 2 . . 5 1 2 . . . . 3 1 Terminals 6 | . 1 . . 1 1 . . . . . 2 1 Assimilate 1 | . . . . 1 . . . . . . . . Botnet 5 | . 1 . . . 1 . . . . . 2 1 Fabricators . | . . . . . . . . . . . . . Repair Stations . | . . . . . . . . . . . . . Recycling Units 8 | . 1 . . 4 . 2 . . . . 1 . Tunnel 1 | . 1 . . . . . . . . . . . Fedlink 7 | . . . . 4 . 2 . . . . 1 . Scanalyzers . | . . . . . . . . . . . . . Garrison Access . | . . . . . . . . . . . . . Data Cores Recovered . | . . . . . . . . . . . . . Used . | . . . . . . . . . . . . . Hacking Detections 38 | . 2 . . 10 6 5 . . . . 8 7 Full Trace Events 3 | . . . . . 1 . . . . . 2 . Feedback Events . | . . . . . . . . . . . . . Feedback Blocked . | . . . . . . . . . . . . . Robot Schematics Acquired . | . . . . . . . . . . . . . Robots Built . | . . . . . . . . . . . . . Authchips . | . . . . . . . . . . . . . Time . | . . . . . . . . . . . . . Total Robot Build Rating . | . . . . . . . . . . . . . Part Schematics Acquired 7 | . 1 . . . 2 . . . . . 4 . Parts Built . | . . . . . . . . . . . . . Authchips . | . . . . . . . . . . . . . Time . | . . . . . . . . . . . . . Total Part Build Rating . | . . . . . . . . . . . . . Part Studies Acquired 1 | . . . . . . . . . . . 1 . Parts Repaired 5 | . . . . . . 5 . . . . . . Time 280 | . . . . . . 280 . . . . . . Parts Recycled . | . . . . . . . . . . . . . Recycled Matter . | . . . . . . . . . . . . . Retrieved Matter . | . . . . . . . . . . . . . Retrieved Components 7 | . . . . 3 . 2 . . . . 2 . Parts Scanalyzed 3 | . . . . . . . . . . . 3 . Part Schematics Acquired 3 | . . . . . . . . . . . 3 . Parts Damaged . | . . . . . . . . . . . . . Bothacking | -11 -10 -10 -7 -5 -5 -4 -4 -4 -4 -3 -3 -3 ------------ Run | Yrd Mat Sub Scr Fac Ext Fac Upp Upp War Pro Res Qua Used RIF Installer . | . . . . . . . . . . . . . Robots Hacked . | . . . . . . . . . . . . . Non-combat . | . . . . . . . . . . . . . Combat . | . . . . . . . . . . . . . Robot Hacks Applied . | . . . . . . . . . . . . . Relay Couplers Released . | . . . . . . . . . . . . . Fabnet Peak Effective % . | . . . . . . . . . . . . . Robots Rewired 9 | . . . . . 7 . . . 2 . . . Allies Hacked . | . . . . . . . . . . . . . Hacks Repelled . | . . . . . . . . . . . . . Allies | -11 -10 -10 -7 -5 -5 -4 -4 -4 -4 -3 -3 -3 -------- Run | Yrd Mat Sub Scr Fac Ext Fac Upp Upp War Pro Res Qua Total Allies 14 | . . . . 1 11 . . . 2 . . . Largest Group 9 | . . . . 1 9 3 . . 2 2 . . Highest-Rated Group 307 | . . . . 10 307 117 . . 128 128 . . Highest-Rated Ally 64 | . . . . 10 39 39 . . 64 64 . . Total Orders . | . . . . . . . . . . . . . Ally Attacks 145 | . . . . . 127 18 . . . . . . Total Damage 2914 | . . . . . 2562 352 . . . . . . Kills 21 | . . . . . 19 2 . . . . . . Allies Corrupted 3 | . . . . . . 1 . . . 2 . . Allies Melted . | . . . . . . . . . . . . . Intel | -11 -10 -10 -7 -5 -5 -4 -4 -4 -4 -3 -3 -3 ------- Run | Yrd Mat Sub Scr Fac Ext Fac Upp Upp War Pro Res Qua Active Infowar (turns) 10520 | 71 154 2779 . 659 1005 2502 918 327 1111 374 320 300 Optics 100 | . . . . 74 . 26 . . . . . . Sensors 538 | . . . . 538 . . . . . . . . IFF 791 | . . . . . . 791 . . . . . . Terrain 1110 | . . . . 235 . . 875 . . . . . Structural 6331 | . . . . . 1005 2502 677 227 1082 358 197 283 Seismic 3004 | 71 154 2779 . . . . . . . . . . Cloaking 421 | . . . . . . . . . 140 191 . 90 Jamming 3427 | . . . . . . 2007 90 152 815 22 317 24 Robot Analysis Total . | . . . . . . . . . . . . . Derelict Logs Recovered 7 | . . 1 5 . . . . 1 . . . . Drone Launches . | . . . . . . . . . . . . . Drone Recoveries . | . . . . . . . . . . . . . Exploration | -11 -10 -10 -7 -5 -5 -4 -4 -4 -4 -3 -3 -3 ------------- Run | Yrd Mat Sub Scr Fac Ext Fac Upp Upp War Pro Res Qua Turns Passed 17382 | 249 154 4508 3732 948 1130 2636 938 560 1125 385 505 512 Spaces Moved 10961 | 149 114 2488 2041 1221 609 1195 532 286 743 551 535 497 Core 120 | 7 . . . 63 1 . . . . . . 49 Treads 3892 | 23 . 1956 168 10 1 464 532 286 452 . . . Legs 1310 | 119 114 14 . . 487 576 . . . . . . Wheels 2599 | . . 518 1873 53 . 155 . . . . . . Hover 2145 | . . . . 243 77 . . . 291 551 535 448 Flight 895 | . . . . 852 43 . . . . . . . Fastest Speed 25 | 50 120 120 105 25 26 100 166 166 42 46 41 45 Average Speed 129 | 122 120 170 180 46 114 139 166 166 118 46 52 46 Slowest Speed 765 | 160 120 210 360 275 765 170 167 167 166 46 100 71 Overloaded Moves . | . . . . . . . . . . . . . Propulsion Burnouts . | . . . . . . . . . . . . . Robots Hopped 18 | . . . . 18 . . . . . . . . Potential Cave-ins 7 | . . . . . . . . . . . 7 . Cave-ins Triggered . | . . . . . . . . . . . . . Exploration Rate (%) 50 | 8 27 81 93 31 49 24 74 45 75 69 25 55 Regions Visited 12 Branch Regions 8 Pre-discovered Areas 5 | . 1 1 1 1 . . . 1 . . . . Known Exits Taken 8 | . . . . 1 1 1 1 1 1 1 1 . Unknown Exits Taken 4 | 1 1 1 1 . . . . . . . . . Scrap Searched 26 | . . 9 6 . . . 3 4 . 4 . . Spaces Dug 87 | . . . . 16 . 33 . . 2 . 23 13 Terrain Destroyed 425 | . . 20 . 85 3 80 5 18 54 101 46 13 Melee 80 | . . . . 9 . 33 . . 2 . 23 13 Projectile 48 | . . 2 . 19 . 11 5 4 1 6 . . AOE 293 | . . 18 . 57 . 35 . 14 51 95 23 . Terrain Rammed . | . . . . . . . . . . . . . Walls Destroyed . | . . . . . . . . . . . . . Machines Disabled . | . . . . . . . . . . . . . Actions | -11 -10 -10 -7 -5 -5 -4 -4 -4 -4 -3 -3 -3 --------- Run | Yrd Mat Sub Scr Fac Ext Fac Upp Upp War Pro Res Qua Total 13263 | 187 133 2671 2097 1480 922 1902 576 346 932 651 667 699 Wait 967 | 5 10 54 1 74 129 408 10 33 45 49 44 105 Move 10914 | 148 113 2487 2040 1185 608 1194 531 285 742 550 534 497 Hop 17 | . . . . 17 . . . . . . . . Pick Up 151 | 10 2 42 24 5 1 29 6 . 11 6 4 11 Fast Attach 204 | 7 1 3 6 39 35 57 6 5 17 5 12 11 Attach 53 | . . 1 1 16 2 8 2 . 6 1 7 9 Detach 54 | . . 2 2 16 5 14 1 3 3 . 6 2 Swap 130 | 3 2 18 4 10 14 16 7 7 24 12 8 5 Drop 209 | 2 5 15 19 23 32 42 9 2 30 10 5 15 Fire 344 | 12 . 49 . 76 42 95 3 11 24 18 14 . Melee 149 | . . . . 19 13 39 . . 2 . 33 43 Ram 2 | . . . . . . . 1 . . . . 1 Kick . | . . . . . . . . . . . . . Crush . | . . . . . . . . . . . . . Escape Stasis 10 | . . . . . 10 . . . . . . . Rewire 35 | . . . . . 15 . . . 20 . . . Trap . | . . . . . . . . . . . . . Miscellaneous 24 | . . . . . 16 . . . 8 . . . Route ------- -11/Scrapyard -10/Materials -10/Subcaves (discovered 3 exits: [*Mat] / [*Rec] / *Scr) -7/Scraptown (discovered 2 exits: *Fac x2) -5/Factory (discovered 2 exits: *Upp / *Ext) -5/Extension -4/Factory (discovered 2 exits: *Res / *Upp) -4/Upper Caves -4/Upper Caves -4/Warlord -3/Proximity Caves -3/Research (discovered 3 exits: *Res / *Qua x2) -3/Quarantine History --------- Turn | Location | Event 3 | -11/Scrapyard | Discovered new exit (range 15) 250 | -11/Scrapyard | Entered Materials 251 | -10/Materials | Met a group of wandering Federalists 301 | -10/Materials | Build established: Mutant 359 | -10/Materials | Discovered new exit (range 7) 404 | -10/Materials | Entered Subcaves 404 | -10/Subcaves | Accompanied by 1 ally 405 | -10/Subcaves | Continued accompanying wandering Federalists (5) 538 | -10/Subcaves | Discovered new exit (range 8) 631 | -10/Subcaves | Lost 6 allies 648 | -10/Subcaves | A swath of the cavern ceiling suddenly collapsed 669 | -10/Subcaves | Wandering Federalist uncovered a shortcut to Scraptown 873 | -10/Subcaves | Build established: Scavenger-Mutant 900 | -10/Subcaves | Disturbed a concealed Subdweller 922 | -10/Subcaves | Disturbed a concealed Subdweller 1284 | -10/Subcaves | Visited Clippyterm 1288 | -10/Subcaves | Learned Factory trap positions 1348 | -10/Subcaves | Learned location of Zion (-6) 1401 | -10/Subcaves | Visited 4L-MR0's lab 1765 | -10/Subcaves | Shifting Twisted Machinery released Flamer 2314 | -10/Subcaves | Discovered new exit (range 11) 2828 | -10/Subcaves | A swath of the cavern ceiling suddenly collapsed 3196 | -10/Subcaves | Build established: Mutant 3382 | -10/Subcaves | Shifting Twisted Machinery released Battle Cannon 4079 | -10/Subcaves | Build established: Hauler-Mutant 4472 | -10/Subcaves | Found Meta Core 4912 | -10/Subcaves | Entered Scraptown 5355 | -7/Scraptown | Scanned Subdweller tech in exchange for log data 5361 | -7/Scraptown | Learned location of 1 exit from Upper Caves 5363 | -7/Scraptown | Learned Research security intel 5365 | -7/Scraptown | Learned 8 Factory zone layouts 5370 | -7/Scraptown | Learned 8 Research zone layouts 5397 | -7/Scraptown | Discovered new exit (range 7) 5567 | -7/Scraptown | Visited The Evicted 5613 | -7/Scraptown | Visited Bundlers 6027 | -7/Scraptown | Visited Fellowship of the Rings 6057 | -7/Scraptown | Visited Red Mages 6115 | -7/Scraptown | Visited TADAMA 6139 | -7/Scraptown | Visited Junk Repository 6186 | -7/Scraptown | Visited Symbiants 6406 | -7/Scraptown | Visited UFD Registry 6406 | -7/Scraptown | Registered with UFD as "Matrixgunner" 6445 | -7/Scraptown | Visited Scrapoid Pod Storage 6471 | -7/Scraptown | Visited Scrap Suit Storage 6524 | -7/Scraptown | Visited Scrapoid Research Area 6779 | -7/Scraptown | Visited Curators Association 6841 | -7/Scraptown | Visited Infowarlord's Domain 6901 | -7/Scraptown | Visited LU-1G1's Boring Crew 6953 | -7/Scraptown | Discovered new exit (range 5) 7095 | -7/Scraptown | Visited Chapter 10 7152 | -7/Scraptown | Visited Science Guys 7856 | -7/Scraptown | Build established: Mutant 8101 | -7/Scraptown | Found Exp. Signal Interpreter 8295 | -7/Scraptown | Attached Meta Core, gained temporary slots: Propulsion, Utility, Weapon 8498 | -7/Scraptown | Met Optimus 8498 | -7/Scraptown | Accepted into 0bPrime 8644 | -7/Scraptown | Entered Factory 8644 | -5/Factory | Evolved 10 slots: Power x1, Propulsion x3, Utility x5, Weapon x1 8646 | -5/Factory | Loaded intel: 94 trap records 8779 | -5/Factory | Loaded intel: 8 recycling unit locations 8894 | -5/Factory | Lost 5 parts (2n1u2w) 8937 | -5/Factory | Lost 3 parts (2u1w) 9011 | -5/Factory | Learned location of Protoforge (-2) 9118 | -5/Factory | Spotted B-75 Beast 9178 | -5/Factory | Core integrity fell below 50% 9237 | -5/Factory | Discovered new exit (range 8) 9239 | -5/Factory | Lost 14 parts (7n4u3w) 9239 | -5/Factory | Identified exit to Upper Caves 9274 | -5/Factory | Found Prototype Launcher 9274 | -5/Factory | Identified Mni. Smartbomb Launcher 9541 | -5/Factory | Build established: Hacker-Mutant 9541 | -5/Factory | System corruption reached 10% 9587 | -5/Factory | Discovered new exit (range 10) 9592 | -5/Factory | Identified exit to Extension 9592 | -5/Factory | Entered Extension 9651 | -5/Extension | Rescued a captive Derelict 9652 | -5/Extension | Rescued a captive Derelict 9688 | -5/Extension | Core integrity fell below 20% 10208 | -5/Extension | Rescued a captive Derelict 10346 | -5/Extension | Rescued a captive Derelict 10401 | -5/Extension | Build established: Scavenger-Tank 10616 | -5/Extension | Spotted B-75 Beast 10624 | -5/Extension | Allies destroyed B-75 Beast 10652 | -5/Extension | Spotted B-75 Beast 10665 | -5/Extension | Allies destroyed B-75 Beast 10703 | -5/Extension | Lost 5 allies 10717 | -5/Extension | Discovered new exit (range 3) 10720 | -5/Extension | Identified exit to Factory 10722 | -5/Extension | Entered Factory 10722 | -4/Factory | Accompanied by 3 allies 10722 | -4/Factory | Evolved 2 slots: Utility x1, Weapon x1 10810 | -4/Factory | Discovered new exit (range 5) 10815 | -4/Factory | Identified exit to Research 10878 | -4/Factory | Loaded intel: 8 recycling unit locations 10896 | -4/Factory | Found Prototype Device 10896 | -4/Factory | Identified Adv. EM Shield 10969 | -4/Factory | Found Prototype Processor 10969 | -4/Factory | Identified Exp. Melee Analysis Suite 11058 | -4/Factory | Build established: Scavenger-Skirmisher 11172 | -4/Factory | Discovered new exit (range 9) 11178 | -4/Factory | Identified exit to Upper Caves 11627 | -4/Factory | Lost 11 parts (2p4n2u3w) 11942 | -4/Factory | System corruption reached 10% 12007 | -4/Factory | Lost 3 parts (1p1n1w) 12232 | -4/Factory | Lost 3 parts (2n1w) 12529 | -4/Factory | Build established: Scavenger-Gunner 12537 | -4/Factory | Repaired Arm. Medium Treads 12594 | -4/Factory | Repaired Arm. Medium Treads 12652 | -4/Factory | Repaired Arm. Medium Treads 12710 | -4/Factory | Repaired Rnf. Fission Core 12768 | -4/Factory | Repaired Tesla Rifle 13212 | -4/Factory | Core integrity fell below 50% 13264 | -4/Factory | Lost 3 parts (1u2w) 13266 | -4/Factory | System corruption reached 30% 13358 | -4/Factory | Entered Upper Caves 13359 | -4/Upper Caves | Identified exit to Upper Caves 13361 | -4/Upper Caves | Attracted the attention of an 0b10 checkpoint 13705 | -4/Upper Caves | Build established: Scavenger-Skirmisher 14238 | -4/Upper Caves | Attracted the attention of an 0b10 outpost 14296 | -4/Upper Caves | Entered another Upper Caves area 14480 | -4/Upper Caves | Attracted the attention of an 0b10 checkpoint 14605 | -4/Upper Caves | Build established: Scavenger-Tank 14783 | -4/Upper Caves | Discovered new exit (range 16) 14840 | -4/Upper Caves | Identified exit to Warlord 14856 | -4/Upper Caves | Entered Warlord 14913 | -4/Warlord | System corruption cleaned by Quarantine Array 14938 | -4/Warlord | Build established: Scavenger-Gunner 15190 | -4/Warlord | Found Prototype Device 15190 | -4/Warlord | Identified Minesniffer Drone Bay 15383 | -4/Warlord | Rebuked by Warlord 15408 | -4/Warlord | Warlord's base attacked by MAIN.C 15677 | -4/Warlord | Found Prototype Device 15677 | -4/Warlord | Identified Exp. Cloaking Device 15683 | -4/Warlord | Found Prototype Reactor 15688 | -4/Warlord | Identified Vortex Chain Reactor 15721 | -4/Warlord | Found Prototype Hackware 15758 | -4/Warlord | Warlord forces counterattacked 15759 | -4/Warlord | Found Prototype Energy Cannon 15759 | -4/Warlord | Identified Vortex Driver 15765 | -4/Warlord | Found Prototype Energy Cannon 15765 | -4/Warlord | Identified Vortex Cannon 15770 | -4/Warlord | Found Vortex Driver 15815 | -4/Warlord | Spotted Executioner 15822 | -4/Warlord | Destroyed Executioner 15863 | -4/Warlord | Spotted Executioner 15887 | -4/Warlord | Spotted Striker 15887 | -4/Warlord | Spotted Executioner 15888 | -4/Warlord | Lost 11 allies 15922 | -4/Warlord | Spotted Executioner 15947 | -4/Warlord | Discovered new exit (range 16) 15959 | -4/Warlord | Identified exit to Proximity Caves 15963 | -4/Warlord | Lost 6 allies 15981 | -4/Warlord | Entered Proximity Caves 15981 | -3/Proximity Caves | Accompanied by 2 allies 16337 | -3/Proximity Caves | Spotted B-86 Titan 16351 | -3/Proximity Caves | Attracted the attention of an 0b10 checkpoint 16361 | -3/Proximity Caves | Discovered exit to Research (range 14) 16366 | -3/Proximity Caves | Entered Research 16366 | -3/Research | Evolved 2 slots: Propulsion x1, Weapon x1 16369 | -3/Research | Identified System Mapper 16377 | -3/Research | Discovered new exit (range 7) 16378 | -3/Research | Identified exit to Quarantine 16379 | -3/Research | Identified exit to Research 16625 | -3/Research | Lost 3 parts (2p1n) 16709 | -3/Research | Lost 5 parts (1p2n1u1w) 16760 | -3/Research | Loaded intel: 5 recycling unit locations 16871 | -3/Research | Entered Quarantine 16892 | -3/Quarantine | Lost 4 parts (1p2n1w) 16930 | -3/Quarantine | Found Alien Artifact 16960 | -3/Quarantine | Build established: Hacker-Mutant 16966 | -3/Quarantine | Cryocooling Duct disabled 16981 | -3/Quarantine | Ambient heat levels rising (+20) 16981 | -3/Quarantine | Non-combat units ordered to evacuate 17043 | -3/Quarantine | Found Alien Artifact 17043 | -3/Quarantine | Identified Phase Armor 17079 | -3/Quarantine | Found Alien Energy Cannon 17079 | -3/Quarantine | Identified Core Cannon 17123 | -3/Quarantine | Found Alien Slashing Weapon 17123 | -3/Quarantine | Identified Sigix Broadsword 17132 | -3/Quarantine | Found Alien Artifact 17132 | -3/Quarantine | Identified Dimensional Node Initializer 17132 | -3/Quarantine | Initialized slip node 17135 | -3/Quarantine | Found Dimensional Node Initializer 17155 | -3/Quarantine | Found Alien Artifact 17158 | -3/Quarantine | Identified Subatomic Replicator 17158 | -3/Quarantine | Used Subatomic Replicator to create Alien Artifact 17200 | -3/Quarantine | System corruption reached 10% 17236 | -3/Quarantine | Lost 6 parts (1p1n3u1w) 17323 | -3/Quarantine | Core integrity fell below 50% 17356 | -3/Quarantine | Core integrity fell below 20% 17382 | -3/Quarantine | System corruption reached 30% 17383 | -3/Quarantine | Destroyed by G-67 Veteran with Plasma Rifle Last Messages --------------- effect. 17339_ Imp. Antigrav System destroyed. 17339_ Destroyed Imp. Antigrav System. 17339_ P-80 Master system corrupted by crushing effect. 17340_ P-80 Master resets P-80 Master, system corruption cleaned. 17342_ Gyrokinetic Inverter destroyed. 17345_ P-80 Master resets P-80 Master, system corruption cleaned. 17346_ System corrupted: Component data lost. 17354_ P-80 Master resets P-80 Master, system corruption cleaned. 17355_ Cmb. Antigrav System destroyed. 17356_ Imp. Gyrokinetic Inverter destroyed. 17357_ Dropped Gravity Flail. 17362_ Door malfunctions. 17375_ RP#G338 17378_ Dropped Core Cannon. 17379_ Acquired Impulse Thruster. Map ----- +----------------------------------------------------+ | " ##???????????????????????????????????????? | | # # ???????????????????????????????????????? | | [ # # ???????????????????????????????????????? | | # # ???????????????????????????????????????? | | # # ???????????????????????????????????????? | | " # # ???????????????????????????????????????? | | " + + ???????????????????????????????????????? | | " # # ???????????????????????????????????????? | | # # ??????????????+##??????????????????????? | | ##### ##????????????? #??????????????????????? | | ##### # ????????????? #??????????????????????? | | ##??# # ????????????? #??????????????????????? | | ##??# # ????????????# g #??????????????????????? | | ##??# + ????????????# b #??????????????????????? | | ##??# # ????????????# #??????????????????????? | | ##### # ???????????## ##?????????????????????? | | ##### ############## #?????????????????????? | | ""gg#?????????????????????? | | T +?????????????????????? | | ] #?????????????????????? | | ######/############### = #?????????????????????? | | # ????????##pp ##?????????????????????? | | ?? ???????????# #??????????????????????? | | ?# """"" """"?????????# #??????????????????????? | | ?# """"" """"" ???????# #??????????????????????? | | ?# """"" """""????????# @#??????????????????????? | | ?# ????????# #??????????????????????? | | ?####+#######????????## ##?????????????????????? | | ?????????????????????# #?????????????????????? | | ?????????????????????# #?????????????????????? | | ?????????????????????# " +?????????????????????? | | ?????????????????????# ] #?????????????????????? | | ?????????????????????# #?????????????????????? | | ?????????????????????#######?????????????????????? | | ?????????????????????????????????????????????????? | | ?????????????????????????????????????????????????? | | ?????????????????????????????????????????????????? | | ?????????????????????????????????????????????????? | | ?????????????????????????????????????????????????? | | ?????????????????????????????????????????????????? | | ?????????????????????????????????????????????????? | | ?????????????????????????????????????????????????? | | | | | | | | | | | | | | | | | +----------------------------------------------------+ Best States ------------- Heat Dissipation 65 Energy Generation 55 Energy Capacity 700 Matter Stores 300 Matter Capacity 300 Sight Range 20 Robot Scan Range 16 Terrain Scan Range 24 Terrain Scan Density 210 Jamming Range 16 Cloak Strength 4 Additional Mass Support 16 Armor Coverage 600 Resistance: TH 15 Weapon Cycling 20 Evasion (%) 65 Targeting Accuracy 8 Melee Accuracy 8 Core Analysis 6 Recoil Reduction 5 Kinecelleration 40 Offensive Hacking 31 Defensive Hacking 14 Item Schematics ----------------- Hcp. Storage Unit | -10/Materials | Hacked Recoil Stabilizer | -5/Extension | Hacked Cld. VTOL Module | -5/Extension | Hacked Cmb. Gravmag System | -3/Research | Hacked Adv. Gravity Neutralizer | -3/Research | Scanalyzed Cld. Antigrav System | -3/Research | Scanalyzed Imp. Plasma Cutter | -3/Research | Scanalyzed Robot Schematics ------------------ None Fabricated ------------ Nothing Repaired ---------- Arm. Medium Treads | 3% | -4/Factory Arm. Medium Treads | 18% | -4/Factory Arm. Medium Treads | 29% | -4/Factory Rnf. Fission Core | 36% | -4/Factory Tesla Rifle | 34% | -4/Factory Studied --------- Cmb. Gravmag System | -3/Research | Hacked Alien Tech Used ----------------- Phase Armor Core Cannon Sigix Broadsword Dimensional Node Initializer Subatomic Replicator Achievements -------------- A Problem For Future Me Civilization 2243 Fancy Inventory For Emergencies Only Hulk Smash I Have A Map? I Laugh At Your Crits Into The Breach Item+ Link The Feds Low-level Research Mistaken Identity Overwhelming Physics Protects Plot Armor Spot Them First Strength In Numbers There's More Where That Came From Thread The Needle Around The Corner Throw Away The Key Challenges ------------ None Game ------ Seed HoverMiniEdition Manual? 0 Play Time 02:41:30 Cumulative 235.2 hours Start 2025.10.21 @ 22:30:49 End 2025.10.23 @ 16:17:08 Sessions 7 Manual Loads 0 Difficulty Rogue Special Mode None Game No. 127 Rogue 127 Adventurer 0 Explorer 0 Win Type - Total 4 Types 3/0/1/0/0/0/0/0/0/0 Lore% 73 Gallery% 70 Achievement% 39 Wizard Run 0 Options --------- Layout 1 ASCII 0 Keyboard 1 Movement Numpad Keybinds 0 Fullscreen 2 Font 24/Terminus Map View 50x40 Zoom Use 0% Tactical HUD 1 Map Filters NONE Filters NONE Steam 1 RUN: 9d915024-e9ec-4630-8cff-737c9d2bf6b2